bitfinex-derivatives/quotes_BTCF0:USTF0_20250504
["timestamp","ask_amount","ask_price","bid_price","bid_amount"]
[1746368021545,0.4793729,95509.0,95507.0,0.16000206]
[1746368022145,0.5973729,95509.0,95507.0,0.16000206]
[1746368022847,0.5453729,95509.0,95507.0,0.16000206]
[1746368023938,0.5453729,95509.0,95508.0,0.3638]
[1746368024446,0.5453729,95509.0,95508.0,0.5761751]
[1746368024651,0.5453729,95509.0,95508.0,0.3668]
[1746368024846,0.5772729,95509.0,95508.0,0.3668]
[1746368026344,0.9956729,95509.0,95508.0,0.3668]
[1746368027248,1.0476729,95509.0,95508.0,0.3668]
[1746368027448,0.9956729,95509.0,95508.0,0.3668]
[1746368028448,1.0282729,95509.0,95508.0,0.3668]
[1746368028746,1.3890729,95509.0,95508.0,0.0387]
[1746368029149,1.3890729,95509.0,95508.0,0.2480751]
[1746368030043,1.4410729,95509.0,95508.0,0.0387]
[1746368030249,1.5457769,95509.0,95508.0,0.006]
[1746368031353,1.8157769,95509.0,95508.0,0.006]
[1746368031551,0.2093904,95501.0,95500.0,0.43550206]
[1746368031746,1.4585904,95501.0,95500.0,0.43550206]
[1746368032052,0.3094058,95494.0,95493.0,0.0305]
[1746368032354,0.4594058,95494.0,95493.0,0.0305]
[1746368032553,0.4244058,95494.0,95493.0,0.0305]
[1746368032752,0.4594058,95494.0,95493.0,0.0305]
[1746368032953,0.4594058,95494.0,95493.0,0.0615]
[1746368032954,0.9048058,95494.0,95493.0,0.0615]
[1746368033155,1.0559058,95494.0,95493.0,0.0615]
[1746368033452,1.0559058,95494.0,95493.0,0.0675]
[1746368033955,1.0519058,95494.0,95493.0,0.0675]
[1746368034554,1.0519058,95494.0,95493.0,0.0735]
[1746368036057,1.0015058,95494.0,95493.0,0.0735]
[1746368036257,1.0519058,95494.0,95493.0,0.0735]
[1746368036459,1.0015058,95494.0,95493.0,0.0735]
[1746368036755,0.9684058,95494.0,95493.0,0.0735]
[1746368037151,0.9838058,95494.0,95493.0,0.0735]
[1746368037352,0.9684058,95494.0,95493.0,0.0735]
[1746368037849,0.9668058,95494.0,95493.0,0.0735]
[1746368038051,0.9684058,95494.0,95493.0,0.282908]
[1746368038956,0.9364058,95494.0,95493.0,0.282908]
[1746368039560,0.9348058,95494.0,95493.0,0.282908]
[1746368039859,0.9364058,95494.0,95493.0,0.282908]
[1746368040260,0.9364058,95494.0,95493.0,0.0735]
[1746368041052,0.9348058,95494.0,95493.0,0.1067]
[1746368041248,0.9364058,95494.0,95493.0,0.1067]
[1746368041861,0.9364058,95494.0,95493.0,0.316108]
[1746368042658,0.9364058,95494.0,95493.0,0.346108]
[1746368046165,0.8884058,95494.0,95493.0,0.346108]
[1746368046368,0.7368058,95494.0,95493.0,0.346108]
[1746368049670,0.3184058,95494.0,95493.0,0.346108]
[1746368054470,0.118,95494.0,95493.0,0.346108]
[1746368055669,0.3274058,95494.0,95493.0,0.346108]
[1746368056381,0.118,95494.0,95493.0,0.346108]
[1746368056774,0.118,95494.0,95493.0,0.416108]
[1746368063984,0.4774058,95494.0,95493.0,0.1067]
[1746368064288,0.4774058,95494.0,95493.0,0.0735]
[1746368064289,0.5074058,95494.0,95493.0,0.0735]
[1746368065085,0.5703058,95494.0,95493.0,0.0735]
[1746368066782,0.5703058,95494.0,95493.0,0.282908]
[1746368067174,0.5376058,95494.0,95493.0,0.282908]
[1746368067992,0.5076058,95494.0,95493.0,0.282908]
[1746368068588,0.5076058,95494.0,95493.0,0.322908]
[1746368068589,0.3274058,95494.0,95493.0,0.322908]
[1746368070491,0.3274058,95494.0,95493.0,0.372908]
[1746368070689,0.3274058,95494.0,95493.0,0.322908]
[1746368074388,0.3274058,95494.0,95493.0,0.318908]
[1746368074693,0.3274058,95494.0,95493.0,0.314908]
[1746368084490,0.118,95494.0,95493.0,0.314908]
[1746368085298,0.3274058,95494.0,95493.0,0.314908]
[1746368094403,0.7682058,95494.0,95493.0,0.314908]
[1746368094993,0.7682058,95494.0,95493.0,0.0655]
[1746368095197,0.7682058,95494.0,95493.0,0.274908]
[1746368095704,0.8309058,95494.0,95493.0,0.274908]
[1746368097810,0.7986058,95494.0,95493.0,0.274908]
[1746368098509,0.2284,95494.0,95493.0,0.274908]
[1746368098809,0.118,95494.0,95493.0,0.344908]
[1746368102317,0.118,95494.0,95493.0,0.16288305]
[1746368105601,0.118,95494.0,95493.0,0.22718305]
[1746368107112,0.0843447,95507.0,95493.0,0.22718305]
[1746368107113,0.2093609,95515.0,95514.0,0.2093619]
[1746368107304,0.4702609,95515.0,95514.0,0.2193619]
[1746368107905,0.4702609,95515.0,95514.0,0.2801619]
[1746368108113,0.3582609,95515.0,95514.0,0.2801619]
[1746368108305,0.3908609,95515.0,95514.0,0.2801619]
[1746368109105,0.3948609,95515.0,95514.0,0.2801619]
[1746368109506,0.3978609,95515.0,95514.0,0.2801619]
[1746368116617,0.3652609,95515.0,95514.0,0.2801619]
[1746368117718,0.3652609,95515.0,95514.0,0.0708]
[1746368118618,0.3652609,95515.0,95514.0,0.2801619]
[1746368119610,0.1559,95515.0,95514.0,0.2801619]
[1746368120718,0.3652597,95515.0,95514.0,0.2801619]
[1746368127324,0.2617154,95511.0,95508.0,0.0523433]
[1746368127621,0.2617154,95511.0,95507.0,0.3608]
[1746368127622,0.2093751,95508.0,95507.0,0.3608]
[1746368128022,0.2093751,95508.0,95507.0,0.5701773]
[1746368128218,0.3273751,95508.0,95507.0,0.5701773]
[1746368130024,0.3313751,95508.0,95507.0,0.5701773]
[1746368131522,0.3313751,95508.0,95507.0,0.2093773]
[1746368133527,0.2093773,95507.0,95506.0,0.0301]
[1746368133827,0.2711773,95507.0,95506.0,0.0301]
[1746368134125,0.3891773,95507.0,95506.0,0.0301]
[1746368134725,0.3921773,95507.0,95506.0,0.0301]
[1746368135115,0.209386,95503.0,95502.0,0.2725478]
[1746368135429,0.209386,95503.0,95502.0,0.2825478]
[1746368135629,0.209386,95503.0,95502.0,0.07316]
[1746368136127,0.389186,95503.0,95502.0,0.07316]
[1746368136721,0.390186,95503.0,95502.0,0.07316]
[1746368141334,0.2093904,95501.0,95500.0,0.0633]
[1746368142239,0.3273904,95501.0,95500.0,0.0302]
[1746368142427,0.3373904,95501.0,95500.0,0.0302]
[1746368142834,0.3383904,95501.0,95500.0,0.0302]
[1746368143029,0.2094058,95494.0,95493.0,0.0324]
[1746368143229,0.2094058,95494.0,95493.0,0.0729]
[1746368143937,0.2740058,95494.0,95493.0,0.0729]
[1746368144239,0.3920058,95494.0,95493.0,0.0739]
[1746368144427,0.3920058,95494.0,95493.0,0.0749]
[1746368145333,0.3920058,95494.0,95493.0,0.0425]
[1746368148539,0.4920058,95494.0,95493.0,0.0325]
[1746368150741,0.8528058,95494.0,95493.0,0.0325]
[1746368151132,0.7545058,95494.0,95493.0,0.0625]
[1746368151333,0.7214058,95494.0,95493.0,0.0625]
[1746368151534,0.3274058,95494.0,95493.0,0.271908]
[1746368153541,0.3274058,95494.0,95493.0,0.0625]
[1746368153740,0.3274058,95494.0,95493.0,0.271908]
[1746368155841,0.3274058,95494.0,95493.0,0.302408]
[1746368164557,0.118,95494.0,95493.0,0.302408]
[1746368164745,0.4184,95509.0,95508.0,0.2093751]
[1746368164949,0.6277729,95509.0,95508.0,0.6301751]
[1746368165152,0.7457729,95509.0,95508.0,0.6101751]
[1746368165551,0.7457729,95509.0,95508.0,0.6762751]
[1746368165748,0.118,95509.0,95508.0,0.6762751]
[1746368165952,0.12,95509.0,95508.0,0.6762751]
[1746368166157,0.123,95509.0,95508.0,0.7262751]
[1746368167544,0.123,95509.0,95508.0,2.2262751]
[1746368174059,0.123,95509.0,95508.0,2.38607562]
[1746368174759,0.123,95509.0,95508.0,2.02527562]
[1746368174960,0.123,95509.0,95508.0,2.74687562]
[1746368177657,0.123,95509.0,95508.0,2.5370751]
[1746368180849,0.0302,95525.0,95524.0,0.20934]
[1746368181056,0.0302,95525.0,95524.0,0.60014]
[1746368182163,0.1783,95525.0,95524.0,0.63344]
[1746368182558,0.1833,95525.0,95524.0,0.63344]
[1746368182755,0.1893,95525.0,95524.0,0.63444]
[1746368182957,0.1591,95525.0,95524.0,0.63444]
[1746368184863,0.129,95525.0,95524.0,0.64444]
[1746368185066,0.129,95525.0,95524.0,0.63444]
[1746368185563,0.129,95525.0,95524.0,0.64470049]
[1746368187467,0.129,95525.0,95524.0,0.67470049]
[1746368187955,0.129,95525.0,95524.0,1.03550049]
[1746368188761,0.122,95525.0,95524.0,1.03450049]
[1746368195870,0.122,95525.0,95524.0,0.31290049]
[1746368196071,0.122,95525.0,95524.0,1.03450049]
[1746368197871,0.122,95525.0,95524.0,1.19430101]
[1746368201674,0.122,95525.0,95524.0,2.69430101]
[1746368204572,0.0015,95535.0,95534.0,0.2093181]
[1746368204776,0.0015,95535.0,95534.0,0.7801181]
[1746368205077,0.1195,95535.0,95534.0,0.7801181]
[1746368205266,0.1195,95535.0,95534.0,0.8415181]
[1746368205776,0.1235,95535.0,95534.0,0.8415181]
[1746368206567,0.1275,95535.0,95534.0,0.8415181]
[1746368209266,0.126,95535.0,95534.0,0.8493139]
[1746368209472,0.0652,95541.0,95540.0,0.209305]
[1746368209670,0.0652,95541.0,95540.0,0.770105]
[1746368209973,0.0652,95541.0,95540.0,0.720105]
[1746368210270,0.1832,95541.0,95540.0,0.720105]
[1746368210470,0.1832,95541.0,95540.0,0.812105]
[1746368210676,0.1882,95541.0,95540.0,0.812105]
[1746368211877,0.1912,95541.0,95540.0,0.812105]
[1746368212576,0.1584,95541.0,95540.0,0.812105]
[1746368215177,0.1554,95541.0,95540.0,0.812105]
[1746368215478,0.1564,95541.0,95540.0,0.812105]
[1746368216282,0.1524,95541.0,95540.0,0.812105]
[1746368218580,0.1524,95541.0,95540.0,0.802105]
[1746368231374,0.1514,95541.0,95540.0,0.803105]
[1746368232284,0.1504,95541.0,95540.0,0.803105]
[1746368232887,0.1504,95541.0,95540.0,0.866225]
[1746368233088,0.1504,95541.0,95540.0,0.846225]
[1746368234885,0.1504,95541.0,95540.0,0.866225]
[1746368235993,0.1504,95541.0,95540.0,0.846225]
[1746368236689,0.1504,95541.0,95540.0,0.886225]
[1746368237188,0.1504,95541.0,95540.0,0.846225]
[1746368238189,0.1504,95541.0,95540.0,0.876225]
[1746368241093,0.1504,95541.0,95540.0,0.66692]
[1746368242894,0.1504,95541.0,95540.0,0.876225]
[1746368250199,0.1504,95541.0,95540.0,0.846225]
[1746368259305,0.118,95541.0,95540.0,0.846225]
[1746368263811,0.118,95541.0,95540.0,0.878825]
[1746368266314,0.118,95541.0,95540.0,0.958825]
[1746368267923,0.118,95541.0,95540.0,0.878825]
[1746368271527,0.118,95541.0,95540.0,0.898825]
[1746368271729,0.118,95541.0,95540.0,0.878825]
[1746368271919,0.118,95541.0,95540.0,0.928825]
[1746368274530,0.118,95541.0,95540.0,0.878825]
[1746368285339,0.118,95541.0,95540.0,0.518025]
[1746368291738,0.3273028,95541.0,95540.0,0.151]
[1746368292038,0.6881028,95541.0,95540.0,0.001]
[1746368292726,0.7519028,95541.0,95540.0,0.001]
[1746368294836,0.7519028,95541.0,95540.0,0.210305]
[1746368295038,0.85657081,95541.0,95540.0,0.210305]
[1746368296537,0.85657081,95541.0,95540.0,0.230305]
[1746368297648,0.7519028,95541.0,95540.0,0.230305]
[1746368297843,0.85657081,95541.0,95540.0,0.230305]
[1746368298041,0.49577081,95541.0,95540.0,0.230305]
[1746368299945,0.3911028,95541.0,95540.0,0.230305]
[1746368301048,0.3911028,95541.0,95540.0,0.260505]
[1746368304446,0.3592028,95541.0,95540.0,0.290705]
[1746368304845,0.3273028,95541.0,95540.0,0.290705]
[1746368305141,0.118,95541.0,95540.0,0.360705]
[1746368311057,0.0523146,95562.0,95555.0,0.2092721]
[1746368311248,0.0523146,95562.0,95555.0,0.2392721]
[1746368311249,0.0325,95560.0,95555.0,0.2392721]
[1746368311446,0.2102708,95556.0,95555.0,0.2392721]
[1746368311647,0.001,95556.0,95555.0,0.3024721]
[1746368312244,0.119,95556.0,95555.0,0.3024721]
[1746368312450,0.122,95556.0,95555.0,0.3024721]
[1746368312750,0.124,95556.0,95555.0,0.3024721]
[1746368314561,0.3332699,95556.0,95555.0,0.3024721]
[1746368314858,0.124,95556.0,95555.0,0.3024721]
[1746368315555,0.1541,95556.0,95555.0,0.3024721]
[1746368317266,0.124,95556.0,95555.0,0.31276951]
[1746368330870,0.124,95556.0,95555.0,0.3024721]
[1746368331170,0.1568,95556.0,95553.0,0.2092759]
[1746368331369,0.2092743,95554.0,95553.0,0.2092759]
[1746368331770,0.2092852,95549.0,95548.0,0.2940011]
[1746368332067,0.3272852,95549.0,95548.0,0.3040011]
[1746368332271,0.118,95549.0,95548.0,0.3040011]
[1746368332656,0.1831,95549.0,95548.0,0.3040011]
[1746368332861,0.3923852,95549.0,95548.0,0.3040011]
[1746368334567,0.3933852,95549.0,95548.0,0.3040011]
[1746368334768,0.3943852,95549.0,95548.0,0.3040011]
[1746368335466,0.3943852,95549.0,95548.0,0.2716011]
[1746368335674,0.3943852,95549.0,95548.0,0.2192796]
[1746368336865,0.3943852,95549.0,95548.0,0.2501796]
[1746368339478,0.3943852,95549.0,95548.0,0.2192796]
[1746368339773,0.4043852,95549.0,95548.0,0.01]
[1746368340278,0.3943852,95549.0,95548.0,0.01]
[1746368340574,0.3943852,95549.0,95548.0,0.16986657]
[1746368340779,0.3943852,95549.0,95548.0,0.37915397]
[1746368341373,0.3943852,95549.0,95548.0,0.36915397]
[1746368341578,0.3943852,95549.0,95548.0,0.49915397]
[1746368341778,0.3613852,95549.0,95548.0,0.49915397]
[1746368341980,0.1521,95549.0,95548.0,0.49915397]
[1746368342280,0.1521,95549.0,95548.0,0.56345397]
[1746368343769,0.1521,95549.0,95548.0,0.4035874]
[1746368343969,0.1621,95549.0,95548.0,0.4035874]
[1746368344679,0.12,95549.0,95548.0,0.4235874]
[1746368344977,0.12,95549.0,95548.0,0.4035874]
[1746368347382,0.3292852,95549.0,95548.0,0.4235874]
[1746368347583,0.12,95549.0,95548.0,0.4235874]
[1746368349775,0.12,95549.0,95548.0,0.7843874]
[1746368355893,0.12,95549.0,95548.0,0.7643874]
[1746368356190,0.14,95549.0,95548.0,0.7643874]
[1746368357387,0.14,95549.0,95548.0,0.92425397]
[1746368357786,0.7300852,95549.0,95548.0,0.36915397]
[1746368357983,0.7621852,95549.0,95548.0,0.15986657]
[1746368358490,0.8668452,95549.0,95548.0,0.15986657]
[1746368359084,0.8468452,95549.0,95548.0,0.15986657]
[1746368360693,0.8468452,95549.0,95548.0,0.36915397]
[1746368361091,0.8468452,95549.0,95548.0,0.2092874]
[1746368362094,0.7421852,95549.0,95548.0,0.2092874]
[1746368362484,0.7221852,95549.0,95548.0,0.2092874]
[1746368362687,1.1221852,95549.0,95548.0,0.2092874]
[1746368365099,0.9521852,95549.0,95548.0,0.2092874]
[1746368365594,0.2092918,95547.0,95546.0,0.2092902]
[1746368365785,0.3792918,95547.0,95546.0,0.2092902]
[1746368365986,0.4415918,95547.0,95546.0,0.2092902]
[1746368366187,0.5595918,95547.0,95546.0,0.2422902]
[1746368366990,0.5605918,95547.0,95546.0,0.2422902]
[1746368367291,0.5615918,95547.0,95546.0,0.2422902]
[1746368371691,0.5615918,95547.0,95546.0,0.033]
[1746368373195,0.5615918,95547.0,95546.0,0.2422918]
[1746368374997,0.5615918,95547.0,95544.0,0.084124]
[1746368374998,0.2093093,95539.0,95536.0,0.0824283]
[1746368375198,0.2401093,95538.0,95537.0,0.73997807]
[1746368375398,0.3001093,95538.0,95537.0,0.73997807]
[1746368376198,0.4181093,95538.0,95537.0,0.77257807]
[1746368376602,0.4181093,95538.0,95537.0,0.77357807]
[1746368376903,0.4181093,95538.0,95537.0,0.77457807]
[1746368377394,0.4181093,95538.0,95537.0,0.77357807]
[1746368377596,0.4181093,95538.0,95537.0,0.77457807]
[1746368377795,0.4181093,95538.0,95537.0,0.56526657]
[1746368377999,0.4198093,95538.0,95537.0,0.55526657]
[1746368378301,0.5181093,95538.0,95537.0,0.52266657]
[1746368378696,0.5181093,95538.0,95537.0,0.3628]
[1746368380703,0.5181093,95538.0,95537.0,0.5721115]
[1746368380906,0.5181093,95538.0,95537.0,0.3628]
[1746368383605,0.7081093,95538.0,95537.0,0.3628]
[1746368384105,1.1265093,95538.0,95537.0,0.3628]
[1746368385598,1.1265093,95538.0,95537.0,0.3933]
[1746368386014,1.1265093,95538.0,95537.0,0.3628]
[1746368386918,1.4873093,95538.0,95537.0,0.002]
[1746368388912,1.4973093,95538.0,95537.0,0.002]
[1746368392616,1.4873093,95538.0,95537.0,0.002]
[1746368401016,1.2773093,95538.0,95537.0,0.2413115]
[1746368401221,1.2773093,95538.0,95537.0,0.2113115]
[1746368402532,1.2296093,95538.0,95537.0,0.2113115]
[1746368403026,1.2286093,95538.0,95537.0,0.2113115]
[1746368404133,1.2773093,95538.0,95537.0,0.2113115]
[1746368404434,1.2286093,95538.0,95537.0,0.2113115]
[1746368405534,1.2773093,95538.0,95537.0,0.2113115]
[1746368405735,1.2286093,95538.0,95537.0,0.2113115]
[1746368406636,1.2773093,95538.0,95537.0,0.2113115]
[1746368407136,1.2773093,95538.0,95537.0,0.002]
[1746368408828,1.2253093,95538.0,95537.0,0.002]
[1746368409229,1.2773093,95538.0,95537.0,0.002]
[1746368409432,1.4973093,95538.0,95537.0,0.0657]
[1746368410741,1.4453093,95538.0,95537.0,0.0657]
[1746368411943,1.4453093,95538.0,95537.0,0.2750115]
[1746368412154,1.1953093,95538.0,95537.0,0.3050115]
[1746368413945,1.1955093,95538.0,95537.0,0.3050115]
[1746368415549,1.1941093,95538.0,95537.0,0.3050115]
[1746368418146,1.1941093,95538.0,95537.0,0.0957]
[1746368418648,1.2473093,95538.0,95537.0,0.3050115]
[1746368418848,1.1998093,95538.0,95537.0,0.3050115]
[1746368419352,1.2473093,95538.0,95537.0,0.3050115]
[1746368419548,1.1998093,95538.0,95537.0,0.3050115]
[1746368419849,1.2473093,95538.0,95537.0,0.3050115]
[1746368420252,1.1631093,95538.0,95537.0,0.3050115]
[1746368420449,0.0801534,95547.0,95546.0,0.2092918]
[1746368420648,0.1901534,95547.0,95546.0,0.2292918]
[1746368421250,0.3081534,95547.0,95546.0,0.2292918]
[1746368421450,0.3081534,95547.0,95546.0,0.2944918]
[1746368421654,0.5419371,95547.0,95546.0,0.2944918]
[1746368422454,0.5429371,95547.0,95546.0,0.2944918]
[1746368422745,0.5439371,95547.0,95546.0,0.2944918]
[1746368426943,0.5339371,95547.0,95546.0,0.2944918]
[1746368427145,0.5539371,95547.0,95546.0,0.2944918]
[1746368430356,0.4292918,95547.0,95546.0,0.2944918]
[1746368433161,0.22,95547.0,95546.0,0.2944918]
[1746368433353,0.22,95547.0,95546.0,0.3444918]
[1746368433553,0.4292896,95547.0,95546.0,0.3444918]
[1746368434463,0.3292896,95547.0,95546.0,0.3444918]
[1746368434759,0.12,95547.0,95546.0,0.3444918]
[1746368435259,0.002,95547.0,95546.0,0.3444918]
[1746368436160,0.12,95547.0,95546.0,0.3444918]
[1746368437161,0.001,95556.0,95552.0,0.0523192]
[1746368437463,0.2102699,95556.0,95555.0,0.2092721]
[1746368437761,0.001,95556.0,95555.0,0.3692721]
[1746368438252,0.119,95556.0,95555.0,0.3692721]
[1746368438451,0.121,95556.0,95555.0,0.3692721]
[1746368439563,0.123,95556.0,95555.0,0.3692721]
[1746368443463,0.1544,95556.0,95555.0,0.3692721]
[1746368445974,0.123,95556.0,95555.0,0.3992721]
[1746368450172,0.123,95556.0,95555.0,0.19]
[1746368450671,0.123,95556.0,95555.0,0.3992721]
[1746368451574,0.123,95556.0,95555.0,0.3692721]
[1746368455065,0.123,95556.0,95555.0,0.4192721]
[1746368458574,0.123,95556.0,95555.0,0.3692721]
[1746368458967,0.123,95556.0,95555.0,0.4092721]
[1746368459168,0.123,95556.0,95555.0,0.3692721]
[1746368459665,0.123,95556.0,95555.0,0.4092721]
[1746368459876,0.123,95556.0,95555.0,0.3692721]
[1746368460266,0.123,95556.0,95555.0,0.4192721]
[1746368468183,0.033,95558.0,95557.0,0.2092677]
[1746368468482,0.033,95558.0,95557.0,0.8400677]
[1746368468678,0.032,95569.0,95568.0,0.2092436]
[1746368468868,0.032,95569.0,95568.0,0.7100436]
[1746368469272,0.15,95569.0,95568.0,0.7100436]
[1746368469479,0.15,95569.0,95568.0,0.72064522]
[1746368470079,0.1822,95569.0,95568.0,0.75154522]
[1746368470273,0.3914414,95569.0,95568.0,0.7409436]
[1746368470472,0.4225414,95569.0,95568.0,0.2092436]
[1746368471381,0.4245414,95569.0,95568.0,0.2092436]
[1746368471578,0.4255414,95569.0,95568.0,0.2092436]
[1746368472880,0.2163,95569.0,95568.0,0.3392436]
[1746368473080,0.4255414,95569.0,95568.0,0.3711436]
[1746368473380,0.4255414,95569.0,95568.0,0.7319436]
[1746368474584,0.4255414,95569.0,95568.0,0.3711436]
[1746368474783,0.4255414,95569.0,95568.0,0.3392436]
[1746368479487,0.5255414,95569.0,95568.0,0.2092436]
[1746368493800,0.5255414,95569.0,95568.0,0.2722436]
[1746368498702,0.4944414,95569.0,95568.0,0.2722436]
[1746368504503,0.4624414,95569.0,95568.0,0.2722436]
[1746368507202,0.4145414,95569.0,95568.0,0.2722436]
[1746368508404,0.4624414,95569.0,95568.0,0.2722436]
[1746368512109,0.4145414,95569.0,95568.0,0.2722436]
[1746368512502,0.4624414,95569.0,95568.0,0.2722436]
[1746368513306,0.4145414,95569.0,95568.0,0.2722436]
[1746368514109,0.4624414,95569.0,95568.0,0.2722436]
[1746368518711,0.4145414,95569.0,95568.0,0.2722436]
[1746368518903,0.4624414,95569.0,95568.0,0.2722436]
[1746368520110,0.4145414,95569.0,95568.0,0.2822436]
[1746368521515,0.4624414,95569.0,95568.0,0.2822436]
[1746368521705,0.4145414,95569.0,95568.0,0.2822436]
[1746368524816,0.4624414,95569.0,95568.0,0.2822436]
[1746368525116,0.4145414,95569.0,95568.0,0.2822436]
[1746368528824,0.4624414,95569.0,95568.0,0.2822436]
[1746368529523,0.4147414,95569.0,95568.0,0.2822436]
[1746368529723,0.4301414,95569.0,95568.0,0.2822436]
[1746368529924,0.4624414,95569.0,95568.0,0.2822436]
[1746368530710,0.4301414,95569.0,95568.0,0.2822436]
[1746368530915,0.4147414,95569.0,95568.0,0.2822436]
[1746368531528,0.4624414,95569.0,95568.0,0.2822436]
[1746368532431,0.4147414,95569.0,95568.0,0.2822436]
[1746368533632,0.4624414,95569.0,95568.0,0.2822436]
[1746368534531,0.4147414,95569.0,95568.0,0.2822436]
[1746368536536,0.4143414,95569.0,95568.0,0.2822436]
[1746368537222,0.4624414,95569.0,95568.0,0.2822436]
[1746368537622,0.4297414,95569.0,95568.0,0.2822436]
[1746368537827,0.4143414,95569.0,95568.0,0.2822436]
[1746368540623,0.4624414,95569.0,95568.0,0.2822436]
[1746368541135,0.4143414,95569.0,95568.0,0.2822436]
[1746368541536,0.4624414,95569.0,95568.0,0.2822436]
[1746368541737,0.4143414,95569.0,95568.0,0.2822436]
[1746368541941,0.4139414,95569.0,95568.0,0.2822436]
[1746368545340,0.4624414,95569.0,95568.0,0.2822436]
[1746368546041,0.4139414,95569.0,95568.0,0.2822436]
[1746368546541,0.4624414,95569.0,95568.0,0.2822436]
[1746368546841,0.4139414,95569.0,95568.0,0.2822436]
[1746368547342,0.4624414,95569.0,95568.0,0.2822436]
[1746368553837,0.3624414,95569.0,95568.0,0.2822436]
[1746368554339,0.1532,95569.0,95568.0,0.2822436]
[1746368554849,0.3624414,95569.0,95568.0,0.2822436]
[1746368556940,0.3614414,95569.0,95568.0,0.2842436]
[1746368557646,0.3614414,95569.0,95568.0,0.2822436]
[1746368557851,0.3614414,95569.0,95568.0,0.2832436]
[1746368558039,0.3594414,95569.0,95568.0,0.2842436]
[1746368560853,0.4694414,95569.0,95568.0,0.2441436]
[1746368561150,0.5211414,95569.0,95568.0,0.2441436]
[1746368561450,0.5211414,95569.0,95568.0,0.2112436]
[1746368563951,0.3594414,95569.0,95568.0,0.3415436]
[1746368564149,0.1502,95569.0,95568.0,0.2743436]
[1746368564841,0.3594414,95569.0,95568.0,0.6351436]
[1746368570752,0.3594414,95569.0,95568.0,0.6451436]
[1746368570953,0.1502,95569.0,95568.0,0.6451436]
[1746368571952,0.3594414,95569.0,95568.0,0.6451436]
[1746368584556,0.3594414,95569.0,95568.0,0.6751436]
[1746368585055,0.3594414,95569.0,95568.0,0.6451436]
[1746368588550,0.3594414,95569.0,95568.0,0.6441436]
[1746368588750,0.3594414,95569.0,95568.0,0.6451436]
[1746368592153,0.3594414,95569.0,95568.0,0.6441436]
[1746368592458,0.3594414,95569.0,95568.0,0.6451436]
[1746368597364,0.3594414,95569.0,95568.0,0.2843436]
[1746368597965,0.3594414,95569.0,95568.0,0.2743436]
[1746368606267,0.3594414,95569.0,95568.0,0.2843436]
[1746368618896,0.3594414,95569.0,95568.0,0.44421017]
[1746368621691,0.2615377,95575.0,95573.0,0.0523081]
[1746368621992,0.001,95586.0,95580.0,0.2092174]
[1746368622294,0.001,95586.0,95580.0,0.43267906]
[1746368622893,0.001,95586.0,95580.0,0.49607906]
[1746368623085,0.1981534,95581.0,95580.0,0.49607906]
[1746368624997,0.1991534,95581.0,95580.0,0.49607906]
[1746368625399,0.4073686,95581.0,95580.0,0.4856974]
[1746368625690,0.4073686,95581.0,95580.0,0.4886974]
[1746368626298,0.4073686,95581.0,95580.0,0.4916974]
[1746368626999,0.3272152,95581.0,95580.0,0.4916974]
[1746368628897,0.3272152,95581.0,95580.0,0.4886974]
[1746368629088,0.3272152,95581.0,95580.0,0.4896974]
[1746368629289,0.3272152,95581.0,95580.0,0.8504974]
[1746368630000,0.3272152,95581.0,95580.0,0.8474974]
[1746368630203,0.3272152,95581.0,95580.0,0.8484974]
[1746368643708,0.5104152,95581.0,95580.0,0.09538]
[1746368643903,0.4922152,95581.0,95580.0,0.09538]
[1746368644102,0.4922152,95581.0,95580.0,0.3045974]
[1746368644815,0.4922152,95581.0,95580.0,0.06508]
[1746368645110,0.4402152,95581.0,95580.0,0.2742974]
[1746368645807,0.4922152,95581.0,95580.0,0.2742974]
[1746368645998,0.4922152,95581.0,95580.0,0.2112174]
[1746368646412,0.50267785,95581.0,95580.0,0.2112174]
[1746368646598,0.4922152,95581.0,95580.0,0.2112174]
[1746368647301,0.4402152,95581.0,95580.0,0.2112174]
[1746368647911,0.4922152,95581.0,95580.0,0.2112174]
[1746368649022,0.4361152,95581.0,95580.0,0.2112174]
[1746368651204,0.4361152,95581.0,95580.0,0.2427174]
[1746368651614,0.4361152,95581.0,95580.0,0.2748174]
[1746368653213,0.4922152,95581.0,95580.0,0.0341]
[1746368653713,0.4922152,95581.0,95580.0,0.002]
[1746368656616,0.4922152,95581.0,95580.0,0.0344]
[1746368658408,0.4884152,95581.0,95580.0,0.0344]
[1746368658818,0.4922152,95581.0,95580.0,0.0344]
[1746368660722,0.4884152,95581.0,95580.0,0.0344]
[1746368660917,0.4566152,95581.0,95580.0,0.0344]
[1746368661220,0.4604152,95581.0,95580.0,0.0665]
[1746368664019,0.4604152,95581.0,95580.0,0.2757174]
[1746368664225,0.4604152,95581.0,95580.0,0.0665]
[1746368667122,0.4604152,95581.0,95580.0,0.0344]
[1746368671328,0.4704152,95581.0,95580.0,0.0344]
[1746368671527,0.4704152,95581.0,95580.0,0.002]
[1746368681537,0.4704152,95581.0,95580.0,0.0352]
[1746368682636,0.4704152,95581.0,95580.0,0.002]
[1746368689942,0.4704152,95581.0,95580.0,0.0352]
[1746368694241,0.7004152,95581.0,95580.0,0.0352]
[1746368694641,0.2092371,95571.0,95570.0,0.0316]
[1746368694848,0.3092414,95569.0,95568.0,0.15986657]
[1746368695037,0.6992414,95569.0,95568.0,0.15986657]
[1746368695237,0.8172414,95569.0,95568.0,0.15986657]
[1746368695437,0.8791414,95569.0,95568.0,0.15986657]
[1746368695636,0.8761414,95569.0,95568.0,0.15986657]
[1746368695840,0.8731414,95569.0,95568.0,0.15986657]
[1746368696338,0.8731414,95569.0,95568.0,0.16386657]
[1746368696945,0.8731414,95569.0,95568.0,0.16786657]
[1746368697442,0.0523129,95565.0,95552.0,0.00156982]
[1746368697647,0.2092743,95554.0,95553.0,0.21333903]
[1746368697841,0.2092743,95554.0,95552.0,0.00156982]
[1746368697842,0.2092765,95553.0,95552.0,0.00156982]
[1746368698141,0.0523248,95543.0,95535.0,0.32061362]
[1746368698337,0.2616115,95537.0,95536.0,0.0307]
[1746368698542,0.2573115,95537.0,95536.0,0.0307]
[1746368698742,0.2890115,95537.0,95536.0,0.0307]
[1746368699046,0.2860115,95537.0,95536.0,0.0307]
[1746368699238,0.3243115,95537.0,95536.0,0.1307]
[1746368699435,0.3723115,95537.0,95536.0,0.2800137]
[1746368699634,0.118,95537.0,95536.0,0.6000137]